[Event "CCT Chessable Masters D-III 2024"]
[Site "Online"]
[Date "2024.02.03"]
[Round "52"]
[White "Rakhmanov_Aleksandr"]
[Black "bardiya_Daneshvar"]
[Result "1/2-1/2"]
[ECO "D90"]
[WhiteElo "2633"]
[BlackElo "2587"]
[Annotator "ChessBase"]
[PlyCount "119"]
[EventDate "2024.01.12"]
[EventType "k.o."]
[EventCountry "NET"]
[SourceTitle "playchess.com"]
[Source "ChessBase"]
[SourceQuality "1"]
[TimeControl "600+2"]

1. d4 {[%emt 0:00:04]} Nf6 {[%emt 0:00:04]} 2. c4 {[%emt 0:00:01]} g6 {[%emt 0:00:01]} 3. Nc3 {[%emt 0:00:01]} d5 {[%emt 0:00:00]} 4. Nf3 {[%emt 0:00:01]} Bg7 {[%emt 0:00:01]} 5. cxd5 {[%emt 0:00:01]} Nxd5 {[%emt 0:00:00]} 6. Qa4+ {[%emt 0:00:00]} Nc6 {[%emt 0:00:01]} 7. e4 {[%emt 0:00:02]} Nb6 {[%emt 0:00:00]} 8. Qc2 {[%emt 0:00:00]} Bxd4 {[%emt 0:00:03]} 9. Bb5 {[%emt 0:00:09]} Bg7 {[%emt 0:00:01]} 10. Bxc6+ {[%emt 0:00:03]} bxc6 {[%emt 0:00:01]} 11. O-O {[%emt 0:00:01]} Bg4 {[%emt 0:00:22]} 12. Nd2 {[%emt 0:00:10]} c5 {[%emt 0:00:52]} 13. h3 {[%emt 0:01:15]} Be6 {[%emt 0:01:10]} 14. Rd1 {[%emt 0:00:02]} O-O {[%emt 0:00:20]} 15. Nf3 {[%emt 0:00:49]} Qe8 {[%emt 0:00:13]} 16. Bg5 {[%emt 0:01:05]} Rb8 {[%emt 0:00:46]} 17. Rac1 {[%emt 0:00:50]} h6 {[%emt 0:00:34]} 18. Bh4 {[%emt 0:00:51]} Rb7 {[%emt 0:00:43]} 19. b3 {[%emt 0:00:32]} c4 {[%emt 0:00:16]} 20. b4 {[%emt 0:00:13]} Nc8 {[%emt 0:00:28]} 21. a3 {[%emt 0:00:17]} Nd6 {[%emt 0:00:10]} 22. Nd4 {[%emt 0:00:12]} Bd7 {[%emt 0:00:21]} 23. Qe2 {[%emt 0:00:25]} e5 {[%emt 0:00:33]} 24. Nc2 {[%emt 0:00:19]} Be6 {[%emt 0:00:37]} 25. Ne3 {[%emt 0:00:12]} f6 {[%emt 0:00:12]} 26. f3 {[%emt 0:00:07]} a6 {[%emt 0:00:22]} 27. Ncd5 {[%emt 0:00:14]} Qf7 {[%emt 0:01:18]} 28. Nxc4 {[%emt 0:00:08]} Bxd5 {[%emt 0:00:20]} 29. Nxd6 {[%emt 0:00:34]} cxd6 {[%emt 0:00:03]} 30. Rxd5 {[%emt 0:00:00]} Ra8 {[%emt 0:00:02]} 31. Rxd6 {[%emt 0:00:05]} a5 {[%emt 0:00:00]} 32. b5 {[%emt 0:00:05]} g5 {[%emt 0:00:04]} 33. Bf2 {[%emt 0:00:07]} Bf8 {[%emt 0:00:05]} 34. Ra6 {[%emt 0:00:01]} Rd8 {[%emt 0:00:19]} 35. a4 {[%emt 0:00:01]} Bb4 {[%emt 0:00:11]} 36. Rcc6 {[%emt 0:00:08]} Rd2 {[%emt 0:00:03]} 37. Qc4 {[%emt 0:00:34]} Rd1+ {[%emt 0:00:08]} 38. Kh2 {[%emt 0:00:03]} Rd2 {[%emt 0:00:00]} 39. Be1 {[%emt 0:00:43]} Rb2 {[%emt 0:00:03]} 40. Qxf7+ {[%emt 0:00:16]} Rxf7 {[%emt 0:00:03]} 41. Bxb4 {[%emt 0:00:01]} axb4 {[%emt 0:00:01]} 42. b6 {[%emt 0:00:12]} b3 {[%emt 0:00:00]} 43. Ra8+ {[%emt 0:00:12]} Kg7 {[%emt 0:00:05]} 44. Ra7 {[%emt 0:00:06]} Rxg2+ {[%emt 0:00:06]} 45. Kxg2 {[%emt 0:00:03]} b2 {[%emt 0:00:01]} 46. Rcc7 {[%emt 0:00:10]} b1=Q {[%emt 0:00:03]} 47. Rxf7+ {[%emt 0:00:02]} Kg6 {[%emt 0:00:00]} 48. Rfb7 {[%emt 0:00:08]} Qc2+ {[%emt 0:00:11]} 49. Kf1 {[%emt 0:00:01]} Qd1+ {[%emt 0:00:01]} 50. Kf2 {[%emt 0:00:00]} Qd2+ {[%emt 0:00:00]} 51. Kf1 {[%emt 0:00:01]} Kh5 {[%emt 0:00:10]} 52. a5 {[%emt 0:00:06]} Qd1+ {[%emt 0:00:08]} 53. Kf2 {[%emt 0:00:01]} Qd2+ {[%emt 0:00:00]} 54. Kf1 {[%emt 0:00:00]} Qd1+ {[%emt 0:00:05]} 55. Kf2 {[%emt 0:00:01]} Qc2+ {[%emt 0:00:05]} 56. Ke3 {[%emt 0:00:04]} Qc3+ {[%emt 0:00:02]} 57. Ke2 {[%emt 0:00:00]} Qc2+ {[%emt 0:00:03]} 58. Ke3 {[%emt 0:00:00]} Qc3+ {[%emt 0:00:00]} 59. Ke2 {[%emt 0:00:01]} Qc2+ {[%emt 0:00:01]} 60. Ke3 {[%emt 0:00:00]} 1/2-1/2

[Event "CCT Chessable Masters D-III 2024"]
[Site "Online"]
[Date "2024.02.03"]
[Round "52"]
[White "Mishra, Abhimanyu"]
[Black "Yoo, Christopher Woojin"]
[Result "1/2-1/2"]
[ECO "B66"]
[WhiteElo "2627"]
[BlackElo "2595"]
[Annotator "ChessBase"]
[PlyCount "125"]
[EventDate "2024.01.12"]
[EventType "k.o."]
[EventCountry "NET"]
[SourceTitle "playchess.com"]
[Source "ChessBase"]
[SourceQuality "1"]
[TimeControl "600+2"]

1. e4 {[%emt 0:00:02]} c5 {[%emt 0:00:05]} 2. Nf3 {[%emt 0:00:03]} d6 {[%emt 0:00:01]} 3. d4 {[%emt 0:00:03]} cxd4 {[%emt 0:00:00]} 4. Nxd4 {[%emt 0:00:00]} Nf6 {[%emt 0:00:00]} 5. Nc3 {[%emt 0:00:00]} Nc6 {[%emt 0:00:17]} 6. Bg5 {[%emt 0:00:07]} e6 {[%emt 0:00:04]} 7. Qd2 {[%emt 0:00:03]} a6 {[%emt 0:00:03]} 8. Nxc6 {[%emt 0:00:01]} bxc6 {[%emt 0:00:01]} 9. O-O-O {[%emt 0:00:01]} Be7 {[%emt 0:00:35]} 10. Bxf6 {[%emt 0:00:06]} gxf6 {[%emt 0:00:25]} 11. Bc4 {[%emt 0:00:01]} Qa5 {[%emt 0:00:39]} 12. f4 {[%emt 0:00:32]} d5 {[%emt 0:00:25]} 13. Bb3 {[%emt 0:01:00]} Bb7 {[%emt 0:00:04]} 14. exd5 {[%emt 0:01:00]} O-O-O {[%emt 0:00:38]} 15. Qe1 {[%emt 0:00:28]} Bb4 {[%emt 0:00:49]} 16. dxe6 {[%emt 0:00:29]} Rxd1+ {[%emt 0:00:05]} 17. Qxd1 {[%emt 0:00:32]} fxe6 {[%emt 0:00:08]} 18. Bxe6+ {[%emt 0:00:16]} Kb8 {[%emt 0:00:01]} 19. Ne4 {[%emt 0:00:49]} f5 {[%emt 0:00:45]} 20. Nf2 {[%emt 0:02:10]} Re8 {[%emt 0:01:07]} 21. Bb3 {[%emt 0:00:14]} Qb6 {[%emt 0:00:35]} 22. Nd3 {[%emt 0:00:07]} Bd6 {[%emt 0:00:15]} 23. Qh5 {[%emt 0:00:41]} Qe3+ {[%emt 0:00:57]} 24. Kb1 {[%emt 0:00:02]} Qe4 {[%emt 0:00:18]} 25. a3 {[%emt 0:00:31]} Rd8 {[%emt 0:00:43]} 26. Re1 {[%emt 0:00:20]} Qxg2 {[%emt 0:00:02]} 27. Qxh7 {[%emt 0:00:27]} Bc8 {[%emt 0:01:31]} 28. Qh6 {[%emt 0:00:16]} Qd2 {[%emt 0:00:07]} 29. Qf6 {[%emt 0:00:12]} Rd7 {[%emt 0:00:17]} 30. Re8 {[%emt 0:00:09]} Kc7 {[%emt 0:00:03]} 31. Qd4 {[%emt 0:00:16]} c5 {[%emt 0:00:01]} 32. Qc4 {[%emt 0:00:03]} Bb7 {[%emt 0:00:03]} 33. Nxc5 {[%emt 0:00:02]} Bxc5 {[%emt 0:00:01]} 34. Qxc5+ {[%emt 0:00:01]} Bc6 {[%emt 0:00:01]} 35. Qa7+ {[%emt 0:00:01]} Bb7 {[%emt 0:00:01]} 36. Qb8+ {[%emt 0:00:01]} Kb6 {[%emt 0:00:02]} 37. Re6+ {[%emt 0:00:00]} Ka5 {[%emt 0:00:02]} 38. Qe5+ {[%emt 0:00:03]} Bd5 {[%emt 0:00:02]} 39. Qc3+ {[%emt 0:00:06]} Qxc3 {[%emt 0:00:02]} 40. bxc3 {[%emt 0:00:02]} Bxe6 {[%emt 0:00:02]} 41. Bxe6 {[%emt 0:00:00]} Rh7 {[%emt 0:00:01]} 42. Bxf5 {[%emt 0:00:02]} Rxh2 {[%emt 0:00:01]} 43. Bd3 {[%emt 0:00:02]} Rf2 {[%emt 0:00:02]} 44. f5 {[%emt 0:00:01]} Kb6 {[%emt 0:00:02]} 45. Kb2 {[%emt 0:00:01]} a5 {[%emt 0:00:01]} 46. c4 {[%emt 0:00:02]} a4 {[%emt 0:00:04]} 47. Kc3 {[%emt 0:00:04]} Kc5 {[%emt 0:00:01]} 48. Be4 {[%emt 0:00:02]} Rf1 {[%emt 0:00:00]} 49. Kb2 {[%emt 0:00:04]} Kd4 {[%emt 0:00:06]} 50. Bd3 {[%emt 0:00:03]} Re1 {[%emt 0:00:04]} 51. f6 {[%emt 0:00:03]} Re6 {[%emt 0:00:01]} 52. f7 {[%emt 0:00:01]} Rf6 {[%emt 0:00:00]} 53. Bg6 {[%emt 0:00:01]} Kxc4 {[%emt 0:00:01]} 54. Bh5 {[%emt 0:00:01]} Kd4 {[%emt 0:00:04]} 55. Kc1 {[%emt 0:00:04]} Ke5 {[%emt 0:00:04]} 56. c4 {[%emt 0:00:02]} Kf4 {[%emt 0:00:02]} 57. c5 {[%emt 0:00:02]} Kg5 {[%emt 0:00:00]} 58. c6 {[%emt 0:00:01]} Rxc6+ {[%emt 0:00:01]} 59. Kb2 {[%emt 0:00:02]} Rf6 {[%emt 0:00:02]} 60. Bd1 {[%emt 0:00:02]} Rxf7 {[%emt 0:00:01]} 61. Bxa4 {[%emt 0:00:01]} Ra7 {[%emt 0:00:00]} 62. Bb3 {[%emt 0:00:01]} Rxa3 {[%emt 0:00:01]} 63. Kxa3 {[%emt 0:00:01]} 1/2-1/2

[Event "CCT Chessable Masters D-III 2024"]
[Site "Online"]
[Date "2024.02.03"]
[Round "52"]
[White "BilodeauA"]
[Black "Tabatabaei, M. Amin"]
[Result "0-1"]
[ECO "C50"]
[WhiteElo "2622"]
[BlackElo "2696"]
[Annotator "TA"]
[PlyCount "62"]
[EventDate "2024.01.12"]
[EventType "k.o."]
[EventCountry "NET"]
[SourceTitle "playchess.com"]
[Source "ChessBase"]
[SourceQuality "1"]
[TimeControl "600+2"]

{[%evp 10,62,16,8,12,0,2,0,6,0,18,-7,-7,0,0,0,41,10,12,22,25,18,5,16,42,32,43,0,0,0,0,-57,-62,-133,-109,-163,-167,-156,-168,-170,-165,-163,-153,-174,-194,-172,-39,-28,-36,-114,-109,-112,-106,-29997,-29998]} 1. e4 {[%emt 0:00:03]} e5 {[%emt 0:00:08]} 2. Nf3 {[%emt 0:00:04]} Nc6 {[%emt 0:00:02]} 3. Bc4 {[%emt 0:00:01]} Nf6 {[%emt 0:00:01]} 4. d3 {[%emt 0:00:01]} Bc5 {[%emt 0:00:01]} 5. Nc3 {[%emt 0:00:01]} h6 {[%emt 0:00:12]} 6. h3 {[%emt 0:00:01]} a6 {[%emt 0:00:07]} 7. Be3 {[%emt 0:00:01]} d6 {[%emt 0:00:23]} 8. Bxc5 {[%emt 0:00:02]} dxc5 {[%emt 0:00:01] The position is equal.} 9. a4 {[%emt 0:00:00]} Be6 {[%emt 0:00:13]} 10. Nd2 {[%emt 0:00:09][%cal Bf3d2,Bd2c4,Bc4e3][%mdl 32]} Qd6 {[%emt 0:00:22]} 11. Bxe6 {[%emt 0:00:12]} Qxe6 {[%emt 0:00:01]} 12. Nc4 {[%emt 0:00:03]} O-O {[%emt 0:00:06]} 13. Ne3 {[%emt 0:00:09]} b6 {[%emt 0:00:29]} 14. O-O {[%emt 0:00:03]} Rad8 {[%emt 0:00:09]} 15. f4 {[%emt 0:00:53]} exf4 {[%emt 0:00:11]} 16. Rxf4 {[%emt 0:00:00]} Ne5 {[%emt 0:00:18]} 17. b3 {[%emt 0:01:05]} c6 {[%emt 0:00:38]} 18. Qd2 {[%emt 0:00:18]} b5 {[%emt 0:00:36]} 19. axb5 {[%emt 0:00:10]} axb5 {[%emt 0:00:00]} 20. Raf1 {[%emt 0:00:43]} (20. Nf5 $11) 20... Nh5 $15 {[%emt 0:00:12]} 21. Rh4 {[%emt 0:02:16]} ({White should try} 21. Ne2 $15 Nxd3 (21... Nxf4 22. Nxf4 Qe8 23. Nf5 $17) 22. Rf5 (22. cxd3 Nxf4 23. Nxf4 Qxe4 $15)) 21... Ng3 $17 {[%emt 0:00:04][%cal Og7g5] [#] ...g5! is the strong threat.} 22. Rf2 {[%emt 0:00:46]} (22. Rff4 $17 {is a better defense.} Ng6 23. Qe1 Nxh4 24. Qxg3) 22... g5 $19 {[%emt 0:00:20]} 23. Rg4 {[%emt 0:00:02]} Nxg4 {[%emt 0:00:17]} 24. Nxg4 {[%emt 0:00:00]} f5 {[%emt 0:00:08]} 25. exf5 {[%emt 0:00:02]} Rxf5 {[%emt 0:00:55]} 26. Rxf5 {[%emt 0:00:02]} Nxf5 {[%emt 0:00:01]} 27. Ne4 {[%emt 0:00:00]} Nd4 {[%emt 0:02:37]} (27... Ra8 $19 {White must now prevent ...Nd4.} 28. Kh2 Rb8) 28. Nxg5 $1 $15 {[%emt 0:00:53] Excellent horsemanship.} Ne2+ {[%emt 0:00:27]} 29. Kf2 {[%emt 0:00:02]} (29. Kh1 $15 Ng3+ (29... hxg5 $2 {perishes.} 30. Qxg5+ Kf7 31. Qxd8 $18) 30. Kg1) 29... Rf8+ $17 {[%emt 0:00:04]} (29... hxg5 $2 {too greedy.} 30. Qxg5+ (30. Qxe2 Rf8+ 31. Ke1 Qxe2+ 32. Kxe2 Kg7 $17) 30... Kf7 31. Qxd8 $18) 30. Nf3 {[%emt 0:00:00]} Nf4 {[%emt 0:00:04] Black is much more active.} 31. Qc3 $2 {[%emt 0:00:39][%mdl 8192] [#]} (31. Qe3 $17) 31... Qe2+ {[%emt 0:00:11] Weighted Error Value: White=0.46/Black=0.16 (very precise) .  Loses game:     	White=1     	---        Mistake:       	White=4     	Black=1      Inaccurate:     	White=2     	Black=2      OK:         	White=9     	Black=8      Best:        	White=1     	Black=6      Strong:       	White=1     	---} 0-1

[Event "CCT Chessable Masters D-III 2024"]
[Site "Online"]
[Date "2024.02.03"]
[Round "52"]
[White "Antipov, Mikhail Al."]
[Black "MashaPutina"]
[Result "1/2-1/2"]
[ECO "B52"]
[WhiteElo "2604"]
[BlackElo "2640"]
[Annotator "ChessBase"]
[PlyCount "59"]
[EventDate "2024.01.12"]
[EventType "k.o."]
[EventCountry "NET"]
[SourceTitle "playchess.com"]
[Source "ChessBase"]
[SourceQuality "1"]
[TimeControl "600+2"]

1. e4 {[%emt 0:00:04]} c5 {[%emt 0:00:05]} 2. Nf3 {[%emt 0:00:01]} d6 {[%emt 0:00:01]} 3. Bb5+ {[%emt 0:00:02]} Bd7 {[%emt 0:00:01]} 4. c4 {[%emt 0:00:01]} Nf6 {[%emt 0:00:05]} 5. Nc3 {[%emt 0:00:02]} g6 {[%emt 0:00:01]} 6. O-O {[%emt 0:00:10]} Bg7 {[%emt 0:00:01]} 7. Bxd7+ {[%emt 0:00:02]} Nbxd7 {[%emt 0:00:02]} 8. d3 {[%emt 0:00:15]} O-O {[%emt 0:00:02]} 9. h3 {[%emt 0:00:04]} a6 {[%emt 0:00:03]} 10. a4 {[%emt 0:00:07]} e6 {[%emt 0:00:15]} 11. Be3 {[%emt 0:00:31]} Qc7 {[%emt 0:00:05]} 12. Rb1 {[%emt 0:00:14]} Rfe8 {[%emt 0:01:36]} 13. Qd2 {[%emt 0:00:38]} Rad8 {[%emt 0:00:26]} 14. Rfc1 {[%emt 0:01:49]} b6 {[%emt 0:00:05]} 15. b4 {[%emt 0:00:16]} Qc6 {[%emt 0:00:31]} 16. b5 {[%emt 0:01:39]} axb5 {[%emt 0:00:02]} 17. axb5 {[%emt 0:00:21]} Qb7 {[%emt 0:00:01]} 18. Bf4 {[%emt 0:00:07]} Nf8 {[%emt 0:00:28]} 19. Qe2 {[%emt 0:00:15]} h6 {[%emt 0:00:09]} 20. Ra1 {[%emt 0:00:09]} g5 {[%emt 0:00:15]} 21. Bh2 {[%emt 0:00:12]} d5 {[%emt 0:00:13]} 22. Ra6 {[%emt 0:00:11]} dxc4 {[%emt 0:00:10]} 23. dxc4 {[%emt 0:00:02]} Ng6 {[%emt 0:00:01]} 24. Na4 {[%emt 0:00:25]} Nd7 {[%emt 0:00:23]} 25. Rd1 {[%emt 0:00:01]} Ngf8 {[%emt 0:00:16]} 26. Bd6 {[%emt 0:00:09]} Ng6 {[%emt 0:00:13]} 27. Bg3 {[%emt 0:00:14]} Ngf8 {[%emt 0:00:21]} 28. Bd6 {[%emt 0:00:33]} Ng6 {[%emt 0:00:02]} 29. Bg3 {[%emt 0:00:00]} Ngf8 {[%emt 0:00:02]} 30. Bd6 {[%emt 0:00:01]} 1/2-1/2

[Event "CCT Chessable Masters D-III 2024"]
[Site "Online"]
[Date "2024.02.03"]
[Round "52"]
[White "Yoo, Christopher Woojin"]
[Black "Mishra, Abhimanyu"]
[Result "1-0"]
[ECO "E01"]
[WhiteElo "2595"]
[BlackElo "2627"]
[Annotator "ChessBase"]
[PlyCount "101"]
[EventDate "2024.01.12"]
[EventType "k.o."]
[EventCountry "NET"]
[SourceTitle "playchess.com"]
[Source "ChessBase"]
[SourceQuality "1"]
[TimeControl "600+2"]

1. d4 {[%emt 0:00:03]} d5 {[%emt 0:00:05]} 2. c4 {[%emt 0:00:01]} c6 {[%emt 0:00:02]} 3. Nf3 {[%emt 0:00:03]} Nf6 {[%emt 0:00:01]} 4. Nc3 {[%emt 0:00:15]} e6 {[%emt 0:00:02]} 5. g3 {[%emt 0:00:32]} dxc4 {[%emt 0:00:03]} 6. Bg2 {[%emt 0:00:02]} Nbd7 {[%emt 0:00:03]} 7. O-O {[%emt 0:00:01]} b5 {[%emt 0:00:02]} 8. e4 {[%emt 0:00:10]} Bb7 {[%emt 0:00:05]} 9. a4 {[%emt 0:00:40]} Be7 {[%emt 0:01:55]} 10. axb5 {[%emt 0:01:11]} cxb5 {[%emt 0:00:23]} 11. e5 {[%emt 0:00:04]} Nd5 {[%emt 0:00:04]} 12. Nxb5 {[%emt 0:00:01]} O-O {[%emt 0:00:33]} 13. h4 {[%emt 0:01:42]} h6 {[%emt 0:01:17]} 14. Nd2 {[%emt 0:00:55]} Bc6 {[%emt 0:02:34]} 15. Nxa7 {[%emt 0:01:43]} Bb7 {[%emt 0:00:30]} 16. Nxc4 {[%emt 0:00:02]} Qb8 {[%emt 0:00:57]} 17. Bxh6 {[%emt 0:00:34]} gxh6 {[%emt 0:00:14]} 18. Qg4+ {[%emt 0:00:02]} Kh8 {[%emt 0:00:01]} 19. Qh5 {[%emt 0:00:07]} Rxa7 {[%emt 0:01:01]} 20. Qxh6+ {[%emt 0:00:10]} Kg8 {[%emt 0:00:01]} 21. Be4 {[%emt 0:00:18]} N5f6 {[%emt 0:00:12]} 22. exf6 {[%emt 0:00:28]} Nxf6 {[%emt 0:00:04]} 23. Qg5+ {[%emt 0:00:23]} Kh8 {[%emt 0:00:02]} 24. Qh6+ {[%emt 0:00:01]} Kg8 {[%emt 0:00:01]} 25. Bd3 {[%emt 0:00:39]} Rd8 {[%emt 0:00:19]} 26. Qg5+ {[%emt 0:00:09]} Kf8 {[%emt 0:00:02]} 27. Qh6+ {[%emt 0:00:09]} Kg8 {[%emt 0:00:04]} 28. Rae1 {[%emt 0:00:14]} Rd5 {[%emt 0:00:11]} 29. Re5 {[%emt 0:00:07]} Qf8 {[%emt 0:00:05]} 30. Qf4 {[%emt 0:00:09]} Qg7 {[%emt 0:00:05]} 31. Rxd5 {[%emt 0:00:05]} exd5 {[%emt 0:00:04]} 32. Qb8+ {[%emt 0:00:00]} Bf8 {[%emt 0:00:01]} 33. Ne5 {[%emt 0:00:04]} Ra2 {[%emt 0:00:03]} 34. Qxb7 {[%emt 0:00:00]} Nh5 {[%emt 0:00:02]} 35. Kh2 {[%emt 0:00:05]} Ra4 {[%emt 0:00:02]} 36. Qxd5 {[%emt 0:00:02]} Nf6 {[%emt 0:00:00]} 37. Qd8 {[%emt 0:00:02]} Rb4 {[%emt 0:00:02]} 38. Bc4 {[%emt 0:00:01]} Rxb2 {[%emt 0:00:03]} 39. Bxf7+ {[%emt 0:00:01]} Kh7 {[%emt 0:00:00]} 40. Bg6+ {[%emt 0:00:01]} Kg8 {[%emt 0:00:01]} 41. Bf5 {[%emt 0:00:01]} Nh5 {[%emt 0:00:03]} 42. Be6+ {[%emt 0:00:02]} Kh7 {[%emt 0:00:01]} 43. Bf5+ {[%emt 0:00:01]} Kg8 {[%emt 0:00:01]} 44. Qd5+ {[%emt 0:00:06]} Kh8 {[%emt 0:00:04]} 45. Ng6+ {[%emt 0:00:01]} Kh7 {[%emt 0:00:04]} 46. Nxf8+ {[%emt 0:00:00]} Kh6 {[%emt 0:00:03]} 47. Qe6+ {[%emt 0:00:01]} Nf6 {[%emt 0:00:01]} 48. Qe3+ {[%emt 0:00:01]} Kh5 {[%emt 0:00:02]} 49. Qf3+ {[%emt 0:00:01]} Kh6 {[%emt 0:00:01]} 50. Qf4+ {[%emt 0:00:01]} Kh5 {[%emt 0:00:03]} 51. Bg6+ {[%emt 0:00:01]} 1-0

[Event "CCT Chessable Masters D-III 2024"]
[Site "Online"]
[Date "2024.02.03"]
[Round "52"]
[White "Lysyj, Igor"]
[Black "Sargissian, Gabriel"]
[Result "1-0"]
[ECO "D55"]
[WhiteElo "2589"]
[BlackElo "2672"]
[Annotator "ChessBase"]
[PlyCount "97"]
[EventDate "2024.01.12"]
[EventType "k.o."]
[EventCountry "NET"]
[SourceTitle "playchess.com"]
[Source "ChessBase"]
[SourceQuality "1"]
[TimeControl "600+2"]

1. d4 {[%emt 0:00:04]} d5 {[%emt 0:00:04]} 2. c4 {[%emt 0:00:03]} e6 {[%emt 0:00:02]} 3. Nc3 {[%emt 0:00:01]} Nf6 {[%emt 0:00:01]} 4. Bg5 {[%emt 0:00:02]} Be7 {[%emt 0:00:06]} 5. e3 {[%emt 0:00:01]} h6 {[%emt 0:00:01]} 6. Bxf6 {[%emt 0:00:01]} Bxf6 {[%emt 0:00:02]} 7. Nf3 {[%emt 0:00:01]} O-O {[%emt 0:00:01]} 8. Rc1 {[%emt 0:00:02]} c6 {[%emt 0:00:17]} 9. h4 {[%emt 0:00:07]} g6 {[%emt 0:00:13]} 10. Bd3 {[%emt 0:00:04]} Nd7 {[%emt 0:00:11]} 11. cxd5 {[%emt 0:00:08]} exd5 {[%emt 0:00:15]} 12. h5 {[%emt 0:00:02]} g5 {[%emt 0:00:01]} 13. Ne2 {[%emt 0:00:01]} Re8 {[%emt 0:00:18]} 14. Ng3 {[%emt 0:00:13]} Nb6 {[%emt 0:00:47]} 15. O-O {[%emt 0:00:32]} Be6 {[%emt 0:00:37]} 16. Ne5 {[%emt 0:00:32]} Bxe5 {[%emt 0:01:26]} 17. dxe5 {[%emt 0:00:02]} Nc4 {[%emt 0:00:01]} 18. Bxc4 {[%emt 0:00:16]} dxc4 {[%emt 0:00:02]} 19. Qf3 {[%emt 0:00:39]} Kg7 {[%emt 0:01:11]} 20. Rfd1 {[%emt 0:00:45]} Qe7 {[%emt 0:00:15]} 21. Rxc4 {[%emt 0:00:09]} Rad8 {[%emt 0:00:14]} 22. Rcd4 {[%emt 0:00:07]} Rxd4 {[%emt 0:02:14]} 23. exd4 {[%emt 0:00:07]} Rd8 {[%emt 0:00:02]} 24. a3 {[%emt 0:00:04]} g4 {[%emt 0:00:29]} 25. Qe3 {[%emt 0:01:03]} Qg5 {[%emt 0:00:02]} 26. Qxg5+ {[%emt 0:00:10]} hxg5 {[%emt 0:00:00]} 27. Ne4 {[%emt 0:00:00]} Kh6 {[%emt 0:00:01]} 28. Nf6 {[%emt 0:00:02]} a5 {[%emt 0:00:01]} 29. Kh2 {[%emt 0:00:09]} Ra8 {[%emt 0:00:06]} 30. Kg3 {[%emt 0:00:08]} Ra6 {[%emt 0:00:01]} 31. Nxg4+ {[%emt 0:00:52]} Kxh5 {[%emt 0:00:01]} 32. Nf6+ {[%emt 0:00:17]} Kg6 {[%emt 0:00:02]} 33. Ne4 {[%emt 0:00:03]} Rb6 {[%emt 0:00:00]} 34. Rd2 {[%emt 0:00:01]} Rb5 {[%emt 0:00:33]} 35. f3 {[%emt 0:00:08]} Rd5 {[%emt 0:00:51]} 36. Kf2 {[%emt 0:00:12]} b6 {[%emt 0:00:05]} 37. g4 {[%emt 0:00:06]} Rb5 {[%emt 0:00:11]} 38. Nc3 {[%emt 0:02:17]} Rb3 {[%emt 0:00:02]} 39. Rc2 {[%emt 0:00:01]} c5 {[%emt 0:00:18]} 40. d5 {[%emt 0:00:05]} Bd7 {[%emt 0:00:03]} 41. Ne4 {[%emt 0:00:10]} a4 {[%emt 0:00:07]} 42. Rd2 {[%emt 0:00:04]} c4 {[%emt 0:00:02]} 43. Nc3 {[%emt 0:00:02]} b5 {[%emt 0:00:01]} 44. Rc2 {[%emt 0:00:05]} Kg7 {[%emt 0:00:04]} 45. Ke3 {[%emt 0:00:01]} f6 {[%emt 0:00:03]} 46. e6 {[%emt 0:00:02]} Bc8 {[%emt 0:00:01]} 47. Kd4 {[%emt 0:00:00]} Kf8 {[%emt 0:00:00]} 48. Kc5 {[%emt 0:00:03]} Ke7 {[%emt 0:00:01]} 49. Re2 {[%emt 0:00:03]} 1-0

[Event "CCT Chessable Masters D-III 2024"]
[Site "Online"]
[Date "2024.02.03"]
[Round "52"]
[White "bardiya_Daneshvar"]
[Black "Rakhmanov_Aleksandr"]
[Result "1-0"]
[ECO "D31"]
[WhiteElo "2588"]
[BlackElo "2632"]
[Annotator "ChessBase"]
[PlyCount "99"]
[EventDate "2024.01.12"]
[EventType "k.o."]
[EventCountry "NET"]
[SourceTitle "playchess.com"]
[Source "ChessBase"]
[SourceQuality "1"]
[TimeControl "600+2"]

1. d4 {[%emt 0:00:02]} d5 {[%emt 0:00:07]} 2. c4 {[%emt 0:00:02]} e6 {[%emt 0:00:11]} 3. Nc3 {[%emt 0:00:02]} Bb4 {[%emt 0:00:04]} 4. cxd5 {[%emt 0:00:03]} exd5 {[%emt 0:00:01]} 5. Bf4 {[%emt 0:00:02]} c6 {[%emt 0:00:02]} 6. e3 {[%emt 0:00:02]} Ne7 {[%emt 0:00:07]} 7. h4 {[%emt 0:00:06]} Bd6 {[%emt 0:00:10]} 8. Qf3 {[%emt 0:00:48]} Bxf4 {[%emt 0:00:10]} 9. Qxf4 {[%emt 0:00:00]} Nd7 {[%emt 0:00:09]} 10. h5 {[%emt 0:00:10]} h6 {[%emt 0:00:04]} 11. Nf3 {[%emt 0:00:09]} Nf6 {[%emt 0:00:07]} 12. Bd3 {[%emt 0:00:07]} Be6 {[%emt 0:00:14]} 13. Ne5 {[%emt 0:00:12]} Nd7 {[%emt 0:00:03]} 14. O-O-O {[%emt 0:00:31]} Qc7 {[%emt 0:00:34]} 15. Ng6 {[%emt 0:00:14]} Qxf4 {[%emt 0:00:05]} 16. Nxf4 {[%emt 0:00:00]} Bf5 {[%emt 0:00:22]} 17. Be2 {[%emt 0:00:07]} Nc8 {[%emt 0:00:30]} 18. g4 {[%emt 0:00:06]} Bh7 {[%emt 0:00:02]} 19. f3 {[%emt 0:00:44]} Nd6 {[%emt 0:00:03]} 20. Kd2 {[%emt 0:00:01]} a5 {[%emt 0:00:51]} 21. a4 {[%emt 0:00:06]} Nb8 {[%emt 0:00:27]} 22. Rdg1 {[%emt 0:00:10]} Na6 {[%emt 0:00:06]} 23. g5 {[%emt 0:00:07]} Bf5 {[%emt 0:00:35]} 24. b3 {[%emt 0:00:51]} Nc7 {[%emt 0:00:30]} 25. gxh6 {[%emt 0:00:16]} gxh6 {[%emt 0:00:02]} 26. Bd3 {[%emt 0:00:00]} Bxd3 {[%emt 0:00:20]} 27. Nxd3 {[%emt 0:00:04]} Ke7 {[%emt 0:00:07]} 28. e4 {[%emt 0:00:07]} dxe4 {[%emt 0:00:16]} 29. fxe4 {[%emt 0:00:05]} Rag8 {[%emt 0:00:09]} 30. Ke3 {[%emt 0:00:16]} Ne6 {[%emt 0:00:08]} 31. d5 {[%emt 0:00:21]} Ng5 {[%emt 0:00:40]} 32. Rf1 {[%emt 0:00:26]} cxd5 {[%emt 0:01:05]} 33. Nxd5+ {[%emt 0:00:08]} Kd8 {[%emt 0:00:00]} 34. Nf6 {[%emt 0:00:38]} Rg7 {[%emt 0:00:21]} 35. e5 {[%emt 0:01:06]} Ne8 {[%emt 0:00:14]} 36. Rd1 {[%emt 0:00:23]} Ke7 {[%emt 0:02:04]} 37. Nd5+ {[%emt 0:00:16]} Kf8 {[%emt 0:00:03]} 38. Nc5 {[%emt 0:00:16]} Ne6 {[%emt 0:00:11]} 39. Nd7+ {[%emt 0:00:04]} Kg8 {[%emt 0:00:01]} 40. Rhg1 {[%emt 0:00:22]} Rg5 {[%emt 0:00:03]} 41. Rdf1 {[%emt 0:00:42]} Kg7 {[%emt 0:00:02]} 42. Ne7 {[%emt 0:00:03]} Rxg1 {[%emt 0:00:04]} 43. Rxg1+ {[%emt 0:00:08]} Ng5 {[%emt 0:00:00]} 44. Rc1 {[%emt 0:00:22]} f6 {[%emt 0:00:03]} 45. Ng6 {[%emt 0:00:16]} Rg8 {[%emt 0:00:02]} 46. Rc5 {[%emt 0:00:23]} fxe5 {[%emt 0:00:01]} 47. Ndxe5 {[%emt 0:00:05]} Nd6 {[%emt 0:00:03]} 48. Rc7+ {[%emt 0:00:04]} Kf6 {[%emt 0:00:01]} 49. Ng4+ {[%emt 0:00:02]} Ke6 {[%emt 0:00:00]} 50. Nf4+ {[%emt 0:00:01]} 1-0